fUST/lending_fUST_20240706
["ID","MTS","AMOUNT","RATE_DAILY","PERIOD"]
[331342991,1720258243715,-500.0,0.00046461,120]
[331342992,1720258243724,-1807.96429256,0.00046498,120]
[331342993,1720258244667,-207.43053898,0.00046498,120]
[331342994,1720258244677,-1719.52544402,0.00046498,120]
[331342995,1720258244691,-1206.4336295,0.00046498,120]
[331342996,1720258244703,-5535.40092648,0.00046498,120]
[331342997,1720258244714,-8461.36,0.00046498,120]
[331342998,1720258244724,-8461.36,0.00046498,120]
[331342999,1720258244733,-8461.36,0.00046498,120]
[331343000,1720258244743,-8461.36,0.00046498,120]
[331343001,1720258244752,-5750.00982118,0.00046498,120]
[331343002,1720258246110,-2711.35017882,0.00046498,120]
[331343003,1720258246120,-8461.36,0.00046498,120]
[331343004,1720258246130,-8461.36,0.00046498,120]
[331343005,1720258246140,-8461.36,0.00046498,120]
[331343006,1720258246149,-8461.36,0.00046498,120]
[331343007,1720258246159,-8461.36,0.00046498,120]
[331343008,1720258246169,-8461.37620303,0.00046498,120]
[331343012,1720258246179,-151.0,0.00046498,14]
[331343015,1720258246191,-151.0,0.00046498,14]
[331343016,1720258246201,-305.248761,0.00046498,14]
[331343018,1720258246211,-305.248761,0.00046498,14]
[331343022,1720258246221,-2132.690742,0.00046498,14]
[331343024,1720258246231,-2132.690742,0.00046498,14]
[331343026,1720258246241,-305.248761,0.00046498,14]
[331343028,1720258246251,-305.248761,0.00046498,14]
[331343030,1720258246265,-2132.690742,0.00046498,14]
[331343032,1720258246275,-2132.690742,0.00046498,14]
[331343034,1720258246285,-513.282003,0.00046498,14]
[331343036,1720258246294,-513.282003,0.00046498,14]
[331343038,1720258246305,-513.282003,0.00046498,14]
[331343040,1720258246314,-513.282003,0.00046498,14]
[331343042,1720258246323,-151.0,0.00046498,14]
[331343044,1720258246335,-241.525743,0.00046498,14]
[331343046,1720258246344,-241.525743,0.00046498,14]
[331343048,1720258246354,-241.525743,0.00046498,14]
[331343050,1720258246364,-1726.743046,0.00046498,14]
[331343052,1720258246373,-241.525743,0.00046498,14]
[331343054,1720258246383,-1726.743046,0.00046498,14]
[331343056,1720258246393,-1704.70540474,0.00046498,14]
[331343098,1720258246823,369.72554492,0.00040278,3]
[331343112,1720258246952,-22.03764126,0.00046498,14]
[331343114,1720258246961,-1726.743046,0.00046498,14]
[331343116,1720258246972,-151.0,0.00046498,14]
[331343118,1720258246981,-151.0,0.00046498,14]
[331343120,1720258246991,-151.0,0.00046498,14]
[331343122,1720258247000,-151.0,0.00046498,14]
[331343124,1720258247010,-151.0,0.00046498,120]
[331343125,1720258247019,-151.097141,0.00046498,120]
[331343127,1720258247028,-151.0,0.00046498,14]
[331343128,1720258247037,-151.0,0.00046498,14]
[331343129,1720258247046,-151.0,0.00046498,14]
[331343131,1720258247055,-151.0,0.00046498,14]
[331343133,1720258247064,-207.236604,0.00046498,14]
[331343135,1720258247073,-151.0,0.00046498,14]
[331343137,1720258247082,-151.0,0.00046498,14]
[331343139,1720258247091,-179.760851,0.00046498,14]
[331343141,1720258247101,-179.760851,0.00046498,14]
[331343143,1720258247110,-179.760851,0.00046498,14]
[331343145,1720258247119,-179.760851,0.00046498,14]
[331343146,1720258247128,-151.0,0.00046498,14]
[331343147,1720258247137,-151.0,0.00046498,14]
[331343148,1720258247146,-151.0,0.00046498,14]
[331343149,1720258247156,-151.0,0.00046498,14]
[331343150,1720258247165,-151.0,0.00046498,14]
[331343151,1720258247174,-151.0,0.00046498,14]
[331343152,1720258247184,-151.0,0.00046498,14]
[331343153,1720258247193,-199.466381,0.00046498,14]
[331343154,1720258247202,-199.466381,0.00046498,14]
[331343155,1720258247211,-199.466381,0.00046498,14]
[331343156,1720258247221,-199.466381,0.00046498,14]
[331343157,1720258247231,-1003.82146925,0.00046499,120]
[331343158,1720258247240,-1000.0,0.00046499,120]
[331343159,1720258247254,-13956.71366184,0.000465,61]
[331343160,1720258247271,-15840.50000002,0.000465,61]
[331343161,1720258247282,-1729.54799274,0.000465,61]
[331343171,1720258249119,-8970.0,0.000465,61]
[331343172,1720258265125,426.73343161,0.00036545,7]
[331343173,1720258271312,719.99128759,0.0003015,4]
[331343174,1720258286050,495.50543718,0.00036545,4]
[331343175,1720258297811,187.58512958,0.0003015,4]
[331343201,1720259150335,-160.213754,0.00021096,2]
[331343202,1720259150356,-83.37535836,0.00028966,2]
[331343205,1720259237114,-300.0,0.00028965,2]
[331343206,1720259237136,-5183.83235516,0.00028966,2]
[331343210,1720259346107,-268.084681,0.00028934,2]
[331343211,1720259346130,-155.25483488,0.00028966,2]
[331343212,1720259346155,-290.27376141,0.00028966,2]
[331343213,1720259346180,-4374.79780468,0.00028966,2]
[331343214,1720259346202,-160.213754,0.00030011,2]
[331343215,1720259346225,-166.666666,0.00030601,2]
[331343216,1720259346245,-5021.73007871,0.0003065,7]
[331343217,1720259346266,-166.666666,0.00031435,2]
[331343218,1720259346389,-24900.0,0.00031992,2]
[331343219,1720259346416,-697.59224486,0.00032169,2]
[331343220,1720259346439,-166.666666,0.00032269,2]
[331343221,1720259346461,-166.666666,0.00033104,2]
[331343222,1720259346483,-166.666666,0.00033938,2]
[331343223,1720259346507,-1687.12227624,0.00034588,120]
[331343224,1720259346530,-2179.04641263,0.00034592,4]
[331343225,1720259346550,-1026.06984161,0.00034602,4]
[331343226,1720259346571,-1294.60210537,0.00034602,4]
[331343227,1720259346592,-868.36762337,0.00034602,4]
[331343228,1720259346617,-873.26125155,0.00034623,4]
[331343229,1720259346639,-1193.28417824,0.00034623,4]
[331343230,1720259346662,-960.44716727,0.00034623,4]
[331343231,1720259346684,-702.4395183,0.0003463,7]
[331343232,1720259346705,-908.22919531,0.0003463,4]
[331343233,1720259346726,-661.49226235,0.00034634,2]
[331343234,1720259346746,-602.01052306,0.00034634,4]
[331343235,1720259346766,-541.26704253,0.00034642,4]
[331343236,1720259346787,-495.50543718,0.00034642,4]
[331343237,1720259346808,-401.58041188,0.00034669,4]
[331343238,1720259346829,-360.56768716,0.0003467,4]
[331343239,1720259346850,-164.98208243,0.00034672,4]
[331343240,1720259346871,-155.11691821,0.00034672,4]
[331343241,1720259346893,-162.01373055,0.00034672,4]
[331343242,1720259346915,-302.72099812,0.00034702,4]
[331343243,1720259346935,-363.04234933,0.00034702,4]
[331343244,1720259346959,-166.666666,0.00034772,2]
[331343245,1720259346981,-697.59224483,0.00034845,2]
[331343246,1720259347002,-199.29274924,0.00034899,4]
[331343247,1720259347022,-208.72171999,0.00034989,4]
[331343248,1720259347042,-538.65713944,0.0003511,4]
[331343249,1720259347063,-165.64482472,0.00035615,4]
[331343250,1720259347084,-156.66074006,0.00036229,4]
[331343251,1720259347105,-697.59224483,0.00037521,2]
[331343252,1720259347127,-160.213754,0.00038925,2]
[331343253,1720259347152,-269.8439764,0.00039177,4]
[331343254,1720259347176,-500.0,0.00039998,7]
[331343255,1720259347202,-193.96095074,0.00039998,7]
[331343256,1720259347224,-3990.98413807,0.00039999,4]
[331343257,1720259347246,-907.32307775,0.0004,4]
[331343258,1720259347267,-314.27902116,0.0004,120]
[331343259,1720259347288,-697.59224483,0.00040197,28]
[331343260,1720259347310,-697.59224483,0.00042872,28]
[331343261,1720259347332,-200.0,0.00043916,120]
[331343262,1720259347351,-11000.0,0.00044,120]
[331343263,1720259348985,869.79610735,0.00034602,4]
[331343264,1720259371915,154.94557126,0.00043834,4]
[331343265,1720259379064,495.50543718,0.0003511,4]
[331343266,1720259387352,208.72171999,0.0003511,4]
[331343267,1720259390264,360.40189358,0.0003511,4]
[331343268,1720259391535,314.27902116,0.0004,120]
[331343269,1720259395705,751.63191984,0.0004,4]
[331343270,1720259400596,2378.38090316,0.0003999,4]
[331343271,1720259401498,160.0,0.00044171,5]
[331343272,1720259401827,160.0,0.00042869,4]
[331343273,1720259402194,160.0,0.00041567,3]
[331343274,1720259405405,384.13810206,0.00029383,23]
[331343275,1720259427054,566.29192821,0.00042557,4]
[331343276,1720259427359,337.80365502,0.00042557,4]
[331343357,1720259433318,-2505.04335236,0.00032368,4]
[331343359,1720259433327,-8924.95664764,0.00045,14]
[331343361,1720259433339,-1075.04335236,0.00045,14]
[331343363,1720259433350,-160.0,0.00045473,6]
[331343365,1720259433360,-697.59224483,0.00045548,28]
[331343367,1720259433369,-658.02440281,0.000459,120]
[331343402,1720259435486,190.45822619,0.00042557,120]
[331343434,1720259442341,-77344.47999619,0.000459,120]
[331343435,1720259442350,-2040.34238499,0.00046,120]
[331343436,1720259442359,-549.3625375,0.00046,30]
[331343437,1720259442369,-150.50896018,0.00046178,2]
[331343438,1720259442378,-1060.21,0.0004618,3]
[331343439,1720259442389,-883.51,0.0004618,3]
[331343440,1720259442398,-67985.5879677,0.0004619,5]
[331343441,1720259442408,-24144.0,0.000462,120]
[331343442,1720259442418,-183.25203561,0.00046269,2]
[331343443,1720259442427,-183.25203561,0.00046273,2]
[331343444,1720259442437,-183.25203561,0.00046276,2]
[331343445,1720259442446,-2000.0,0.0004628,120]
[331343446,1720259442455,-183.25203561,0.0004628,2]
[331343447,1720259442465,-155.0,0.0004629,52]
[331343448,1720259442475,-500.0,0.00046369,120]
[331343449,1720259442485,-500.0,0.00046369,120]
[331343450,1720259442495,-500.0,0.00046369,120]
[331343451,1720259442504,-606.25373162,0.00046369,120]
[331343452,1720259442526,-448.45689856,0.00046369,120]
[331343453,1720259442536,-500.0,0.00046369,120]
[331343454,1720259442546,-500.0,0.00046369,120]
[331343455,1720259442558,-500.0,0.00046369,120]
[331343456,1720259442568,-500.0,0.00046369,120]
[331343457,1720259442578,-245.27609082,0.00046369,120]
[331343458,1720259442588,-500.0,0.00046369,120]
[331343459,1720259442597,-500.0,0.00046369,120]
[331343460,1720259442606,-500.0,0.00046369,120]
[331343461,1720259442616,-500.0,0.00046369,120]
[331343462,1720259442628,-500.0,0.00046369,120]
[331343463,1720259442638,-500.0,0.00046369,120]
[331343464,1720259442647,-500.0,0.00046369,120]
[331343465,1720259442656,-500.0,0.00046369,120]
[331343466,1720259442667,-287.31380591,0.00046369,31]
[331343467,1720259442676,-13165.04371992,0.0004637,61]
[331343468,1720259442685,-226669.14108904,0.0004637,5]
[331343478,1720259443023,-438.858,0.0004637,5]
[331343479,1720259443038,-44834.35278196,0.0004637,5]
[331343480,1720259443048,-29302.4923865,0.0004638,61]
[331343497,1720259444865,-4675.62170924,0.0004638,61]
[331343499,1720259444877,-2104.57705497,0.0004638,61]
[331343500,1720259444889,-6513.15352916,0.0004638,61]
[331343503,1720259444898,-5608.8881375,0.0004638,15]
[331343506,1720259445361,1157.97666863,0.00042557,4]
[331343515,1720259451163,193.813332,0.00034738,2]
[331343516,1720259451583,193.813332,0.00039474,2]
[331343517,1720259526571,327.60951596,0.00043834,4]
[331343528,1720260347178,-163.473276,0.00021096,2]
[331343529,1720260347210,-3337.6918498,0.00024485,2]
[331343530,1720260360303,4000.0,0.00018899,2]
[331343531,1720260360329,8000.0,0.00018899,2]
[331343535,1720260446112,-3055.8700057,0.00018899,2]
[331343536,1720260452225,-202.741898,0.00018899,2]
[331343538,1720260500996,-901.26864198,0.00018899,2]
[331343540,1720260501146,-882.95335711,0.00018899,2]
[331343543,1720260546552,-414.57616102,0.00018799,2]
[331343544,1720260546582,-5863.08572486,0.00018899,2]
[331343545,1720260546604,-155.11417392,0.00018899,2]
[331343546,1720260546625,-4387.41689241,0.00018899,2]
[331343547,1720260546645,-1766.22008162,0.00018899,2]
[331343548,1720260546667,-1229.17431562,0.00018899,2]
[331343549,1720260546688,-6138.60533055,0.00018899,2]
[331343550,1720260549147,16000.0,0.00016255,2]
[331343551,1720260549173,17816.63026436,0.00016255,2]
[331343552,1720260550168,-13247.08869688,0.00018899,2]
[331343553,1720260550194,-320.92324226,0.0002242,2]
[331343554,1720260550218,-414.57616099,0.00023385,2]
[331343555,1720260550241,-281.95368,0.00023769,2]
[331343556,1720260550276,-21562.3081502,0.00024485,2]
[331343557,1720260550302,-312.55318809,0.00024556,2]
[331343558,1720260550324,-13803.4329356,0.00024656,2]
[331343559,1720260550348,-166.6666679,0.00024956,2]
[331343560,1720260550370,-6953.9743204,0.00024977,2]
[331343561,1720260550394,-1212.5797785,0.00026259,2]
[331343562,1720260550420,-500.0,0.00027397,2]
[331343563,1720260550448,-500.0,0.00027397,2]
[331343564,1720260550474,-500.0,0.00027397,2]
[331343565,1720260550500,-500.0,0.00027397,2]
[331343566,1720260550529,-500.0,0.00027397,2]
[331343567,1720260550565,-500.0,0.00027397,2]
[331343568,1720260550593,-500.0,0.00027397,2]
[331343569,1720260550621,-500.0,0.00027397,2]
[331343570,1720260550648,-500.0,0.00027397,2]
[331343571,1720260550673,-500.0,0.00027397,2]
[331343572,1720260550697,-500.0,0.00027397,2]
[331343573,1720260550722,-500.0,0.00027397,2]
[331343574,1720260550748,-500.0,0.00027397,2]
[331343575,1720260550776,-500.0,0.00027397,2]
[331343576,1720260550801,-500.0,0.00027397,2]
[331343577,1720260550827,-500.0,0.00027397,2]
[331343578,1720260550851,-500.0,0.00027397,2]
[331343579,1720260550876,-500.0,0.00027397,2]
[331343580,1720260550901,-500.0,0.00027397,2]
[331343581,1720260550926,-500.0,0.00027397,2]
[331343582,1720260550953,-500.0,0.00027397,2]
[331343583,1720260550979,-500.0,0.00027397,2]
[331343584,1720260551006,-500.0,0.00027397,2]
[331343585,1720260551031,-500.0,0.00027397,2]
[331343586,1720260551059,-500.0,0.00027397,2]
[331343587,1720260551087,-500.0,0.00027397,2]
[331343588,1720260551112,-500.0,0.00027397,2]
[331343589,1720260551138,-500.0,0.00027397,2]
[331343590,1720260551167,-500.0,0.00027397,2]
[331343591,1720260551194,-500.0,0.00027397,2]
[331343592,1720260551220,-432.36609462,0.00027397,2]
[331343593,1720260551247,-500.0,0.00027397,2]
[331343594,1720260551275,-500.0,0.00027397,2]
[331343595,1720260551303,-500.0,0.00027397,2]
[331343596,1720260551329,-500.0,0.00027397,2]
[331343597,1720260551356,-500.0,0.00027397,2]
[331343598,1720260551383,-500.0,0.00027397,2]
[331343599,1720260551409,-500.0,0.00027397,2]
[331343600,1720260551436,-500.0,0.00027397,2]
[331343601,1720260551463,-500.0,0.00027397,2]
[331343602,1720260551489,-500.0,0.00027397,2]
[331343603,1720260551516,-500.0,0.00027397,2]
[331343604,1720260551543,-414.57616099,0.00027971,2]
[331343605,1720260551574,-312.55318806,0.00029864,2]
[331343606,1720260551596,-13578.69305099,0.00029903,2]
[331343607,1720260551619,-645.35673411,0.0003,4]
[331343608,1720260551642,-164.806056,0.00030093,2]
[331343609,1720260551669,-163.473276,0.00030753,2]
[331343610,1720260551694,-414.57616099,0.00032557,2]
[331343611,1720260551716,-8141.2956216,0.00034562,60]
[331343612,1720260551743,-37300.55426109,0.00034591,4]
[331343613,1720260555121,-250.30001953,0.000246,2]
[331343614,1720260561257,-33721.89675621,0.00034591,4]
[331343615,1720260561282,-3078.51196359,0.00034811,4]
[331343616,1720260561306,-312.55318806,0.00035173,2]
[331343617,1720260561328,-2857.76420507,0.00035259,4]
[331343618,1720260561352,-281.95368,0.00035653,2]
[331343619,1720260561376,-414.57616099,0.00037142,2]
[331343620,1720260561400,-744.96500363,0.00037899,4]
[331343621,1720260561422,-789.77698638,0.00037999,4]
[331343622,1720260561443,-1189.58489802,0.00037999,4]
[331343623,1720260561465,-668.15518255,0.00038264,4]
[331343624,1720260561487,-597.45420845,0.00038264,4]
[331343625,1720260561509,-466.58889923,0.00038499,4]
[331343626,1720260561532,-215.33691159,0.00039393,4]
[331343627,1720260561559,-155.19639919,0.00039393,4]
[331343628,1720260561583,-250.73477693,0.00039393,4]
[331343629,1720260561605,-670.52354543,0.00039393,4]
[331343630,1720260561626,-251.73213452,0.00039393,4]
[331343631,1720260561648,-155.15618592,0.00039994,4]
[331343632,1720260561671,-154.63660398,0.00039994,4]
[331343633,1720260561700,-155.14184401,0.00039994,4]
[331343634,1720260561722,-154.63660398,0.00039994,4]
[331343635,1720260561744,-293.25344581,0.00039994,2]
[331343636,1720260561767,-425.05699387,0.00039994,4]
[331343637,1720260561792,-155.7780495,0.00039994,4]
[331343638,1720260561816,-263.53447751,0.00039999,4]
[331343639,1720260561838,-331.7881799,0.00039999,4]
[331343640,1720260561864,-155.60424435,0.00040229,4]
[331343641,1720260561887,-155.17986803,0.00040278,4]
[331343642,1720260561911,-163.473276,0.00040411,2]
[331343643,1720260561936,-312.55318806,0.00040481,2]
[331343644,1720260561962,-414.57616099,0.00041728,28]
[331343645,1720260564098,-9179.12396404,0.000438,10]
[331343647,1720260597908,8420.84993273,0.00022907,2]
[331343648,1720260597932,1957.09004234,0.00022907,2]
[331343649,1720260603394,881.10329184,0.00022907,2]
[331343650,1720260611873,1481.65534805,0.00022907,2]
[331343658,1720260632146,-984.28098081,0.000438,10]
[331343791,1720260638978,-2399.638932,0.000438,10]
[331343792,1720260638990,-2769.09717942,0.000438,10]
[331343793,1720260639003,-2978.24785991,0.000438,10]
[331343794,1720260639014,-1002.41632879,0.00043823,2]
[331343795,1720260639026,-1157.54352202,0.0004383,2]
[331343796,1720260639039,-361.64934437,0.00043834,4]
[331343797,1720260639050,-10000.0,0.00043834,60]
[331343798,1720260639060,-14175.16735223,0.0004499,5]
[331343799,1720260639109,-56847.28366507,0.0004499,5]
[331343800,1720260639121,-500.0,0.00044999,7]
[331343801,1720260639131,-500.0,0.00044999,7]
[331343802,1720260639141,-500.0,0.00044999,7]
[331343803,1720260639151,-500.0,0.00044999,7]
[331343804,1720260639162,-252.38839775,0.00044999,7]
[331343805,1720260639172,-10000.0,0.00045,45]
[331343806,1720260639183,-259.3444004,0.00045068,2]
[331343807,1720260639194,-11486.63,0.00045205,120]
[331343808,1720260639204,-312.55318806,0.00045789,2]
[331343809,1720260639215,-71022.4510173,0.0004579,5]
[331343810,1720260639225,-25688.61944058,0.000458,5]
[331343811,1720260639236,-878.0,0.00045872,2]
[331343812,1720260639247,-3165.04371992,0.0004589,61]
[331343813,1720260639257,-142044.902035,0.0004589,5]
[331343814,1720260639268,-11486.63,0.0004589,120]
[331343815,1720260639278,-287.31380591,0.00045899,31]
[331343816,1720260639289,-500.0,0.00045899,120]
[331343817,1720260639299,-500.0,0.00045899,120]
[331343818,1720260639310,-500.0,0.00045899,120]
[331343819,1720260639321,-500.0,0.00045899,120]
[331343820,1720260639331,-606.25373162,0.00045899,120]
[331343821,1720260639342,-500.0,0.00045899,120]
[331343822,1720260639352,-448.45689856,0.00045899,120]
[331343823,1720260639362,-245.27609082,0.00045899,120]
[331343824,1720260639373,-500.0,0.00045899,120]
[331343825,1720260639384,-500.0,0.00045899,120]
[331343826,1720260639394,-500.0,0.00045899,120]
[331343827,1720260639404,-500.0,0.00045899,120]
[331343828,1720260639414,-500.0,0.00045899,120]
[331343829,1720260639424,-500.0,0.00045899,120]
[331343830,1720260639434,-500.0,0.00045899,120]
[331343831,1720260639444,-500.0,0.00045899,120]
[331343832,1720260639454,-500.0,0.00045899,120]
[331343833,1720260639464,-500.0,0.00045899,120]
[331343834,1720260639474,-100154.504399,0.000459,120]
[331343835,1720260639483,-10000.0,0.00046,46]
[331343836,1720260639494,-2040.34238499,0.00046,120]
[331343837,1720260639504,-549.3625375,0.00046,30]
[331343838,1720260639514,-2000.0,0.0004628,120]
[331343839,1720260639524,-155.0,0.0004629,52]
[331343840,1720260639534,-312.99057034,0.000463,4]
[331343841,1720260639545,-27388.840464,0.000463,21]
[331343842,1720260639555,-2000.0,0.000463,7]
[331343843,1720260639565,-11705.618648,0.000463,7]
[331343844,1720260639577,-414.57616099,0.00046314,28]
[331343845,1720260639589,-152.521379,0.00046369,14]
[331343846,1720260639599,-151.0,0.00046369,14]
[331343847,1720260639609,-151.0,0.00046369,14]
[331343848,1720260639619,-7474.39627999,0.0004638,61]
[331343849,1720260640456,-28474.7722532,0.0004638,61]
[331343852,1720260640465,-827.7201333,0.0004638,15]
[331343864,1720260640718,-62352.21449592,0.0004638,15]
[331343877,1720260644917,-1060.21,0.00045195,3]
[331343878,1720260644926,-2508.25724636,0.0004638,15]
[331343879,1720260644976,-15273.4391859,0.0004638,15]
[331343934,1720260670549,173.580737,0.00035273,120]
[331343968,1720261628145,-166.551921,0.00021096,2]
[331343969,1720261628168,-2.11975393,0.00027902,2]
[331343970,1720261636542,-230.81885107,0.00027902,2]
[331343971,1720261636566,-166.666666,0.00029168,2]
[331343972,1720261636589,-166.551921,0.00029374,2]
[331343973,1720261636612,-150.2668728,0.00029792,2]
[331343979,1720261746048,-21427.96180481,0.00027184,2]
[331343980,1720261746084,-165.83046442,0.00029734,2]
[331343981,1720261746116,-155.28367271,0.00029792,2]
[331343982,1720261746147,-1089.0775846,0.00029792,2]
[331343983,1720261746174,-303.02802488,0.00029792,2]
[331343984,1720261746203,-253.98954123,0.00029792,2]
[331343985,1720261746232,-4173.5699611,0.00029792,2]
[331343986,1720261746262,-23500.33882396,0.00029793,2]
[331343987,1720261746299,-10239.93582135,0.00029834,2]
[331343988,1720261750165,-763.32326228,0.00029792,2]
[331343989,1720261750200,-10265.44864443,0.00029834,2]
[331343990,1720261754166,-4394.61553422,0.00029834,2]
[331343991,1720261754194,-166.666666,0.00029964,2]
[331343992,1720261754220,-173.580737,0.00030521,120]
[331343993,1720261754245,-166.666666,0.00030759,2]
[331343994,1720261754272,-166.666666,0.00031554,2]
[331343995,1720261754297,-244.0,0.000323,2]
[331343996,1720261754323,-1006.088465,0.000323,9]
[331343997,1720261754351,-166.666666,0.00032349,2]
[331343998,1720261754378,-163.59695,0.00032497,2]
[331343999,1720261754406,-166.666666,0.00033145,2]
[331344000,1720261754427,-10308.17960674,0.00033842,60]
[331344001,1720261754447,-3252.18893663,0.0003467,4]
[331344002,1720261754472,-2938.46230004,0.00034811,4]
[331344003,1720261754498,-500.0,0.00034998,7]
[331344004,1720261754523,-500.0,0.00034998,7]
[331344005,1720261754548,-227.38839775,0.00034998,7]
[331344006,1720261754838,-500.0,0.00034998,7]
[331344007,1720261754877,-500.0,0.00034998,7]
[331344008,1720261754903,-500.0,0.00034998,7]
[331344009,1720261754928,-500.0,0.00034998,7]
[331344010,1720261754954,-500.0,0.00034998,7]
[331344011,1720261754982,-500.0,0.00034998,7]
[331344012,1720261755007,-500.0,0.00034998,7]
[331344013,1720261755030,-165.83046439,0.00035026,2]
[331344014,1720261755052,-2009.24311264,0.00035259,4]
[331344015,1720261755076,-67816.2506993,0.00035263,4]
[331344016,1720261755099,-284.22582068,0.00035273,3]
[331344017,1720261755121,-1483.9344033,0.00035999,4]
[331344018,1720261755145,-1061.23104722,0.00036351,4]
[331344019,1720261755167,-1181.31020319,0.00036732,4]
[331344020,1720261755188,-155.11332947,0.00037,4]
[331344021,1720261755209,-642.9488218,0.00037259,4]
[331344022,1720261755230,-695.70837666,0.00037259,4]
[331344023,1720261755253,-166.551921,0.00037652,2]
[331344024,1720261755274,-268.41032935,0.00038229,7]
[331344025,1720261755299,-232.29605021,0.00038264,4]
[331344026,1720261755321,-245.14515603,0.00038499,4]
[331344027,1720261755345,-393.96069199,0.00038499,4]
[331344028,1720261755366,-155.0203609,0.00038499,4]
[331344029,1720261755392,-155.36370315,0.00038999,4]
[331344030,1720261755415,-203.74104378,0.00038999,4]
[331344031,1720261755437,-154.99342721,0.00038999,4]
[331344032,1720261755461,-155.2536449,0.00038999,4]
[331344033,1720261755485,-188.24500969,0.00039167,4]
[331344034,1720261755508,-448.41697734,0.00039177,4]
[331344035,1720261755531,-962.96577273,0.00039177,4]
[331344036,1720261755554,-706.63540107,0.00039993,4]
[331344037,1720261755576,-249.92344191,0.00039994,10]
[331344038,1720261755597,-150.29386301,0.0004,2]
[331344039,1720261755621,-165.83046439,0.00040317,28]
[331344040,1720261755647,-264.86125261,0.00040807,2]
[331344041,1720261755671,-405.36397802,0.00041589,4]
[331344042,1720261755695,-232.938605,0.00041853,2]
[331344043,1720261755717,-300.0,0.00042,120]
[331344044,1720261755739,-500.0,0.00042,4]
[331344045,1720261755762,-160.09733992,0.00042229,4]
[331344046,1720261755785,-800.0,0.000425,120]
[331344047,1720261755808,-500.0,0.000425,4]
[331344048,1720261755831,-9046.71985221,0.00042754,20]
[331344049,1720261756225,-1275.21020023,0.00035292,4]
[331344050,1720261756251,481.33165246,0.00037587,30]
[331344051,1720261759113,-727.49132511,0.00042754,20]
[331344052,1720261759136,-2118.3618334,0.00042754,4]
[331344053,1720261759158,-1500.68966724,0.00042754,2]
[331344054,1720261759180,-310.29950537,0.00042958,4]
[331344055,1720261759203,-500.0,0.00043,4]
[331344056,1720261759224,-500.0,0.00043,4]
[331344057,1720261759247,-160.0,0.00043303,3]
[331344058,1720261759268,-500.0,0.000435,4]
[331344059,1720261759289,-190.9281156,0.00043723,2]
[331344060,1720261759311,-300.0,0.00044,120]
[331344061,1720261759333,-500.0,0.00044,4]
[331344062,1720261759356,-500.0,0.00044,4]
[331344063,1720261759379,-500.0,0.000445,4]
[331344064,1720261759764,161.0,0.00042754,2]
[331344066,1720261790825,857.70204187,0.00036162,4]
[331344067,1720261790847,4352.82217789,0.00036162,4]
[331344068,1720261790879,183.44906055,0.00036162,4]
[331344069,1720261792353,485.54664071,0.00036162,4]
[331344070,1720261794271,948.46855971,0.00036162,4]
[331344071,1720261796420,323.86322656,0.00036162,4]
[331344072,1720261806366,2934.8472087,0.00040599,20]
[331344073,1720261806391,6839.36396862,0.00040599,20]
[331344074,1720261808051,262.10036123,0.00036162,4]
[331344075,1720261813049,550.26615584,0.00036162,4]
[331344076,1720261816192,706.63540107,0.00036162,4]
[331344099,1720261836372,-151.0,0.00032383,7]
[331344102,1720261836383,-800.0,0.000425,120]
[331344105,1720261836396,-649.31656669,0.0004254,46]
[331344107,1720261836407,-636.53625817,0.0004254,46]
[331344109,1720261836426,-2341.80443408,0.0004254,46]
[331344111,1720261836435,-3627.65725894,0.00042966,46]
[331344113,1720261836445,-448.76121569,0.00043391,48]
[331344116,1720261836458,-2857.23272155,0.00043391,48]
[331344118,1720261836470,-482.34578754,0.00043391,48]
[331344120,1720261836480,-500.0,0.00045,4]
[331344122,1720261836490,-500.0,0.00045,4]